[Event "*** Titled Tuesday Blitz"]
[Site "Chess.com"]
[Date "2021.03.30"]
[Round "11"]
[White "Kostukov_Alex"]
[Black "dhaessel"]
[Result "0-1"]
[WhiteElo "2299"]
[BlackElo "2064"]
[TimeControl "180+1"]
[EndTime "12:09:31 PDT"]
[Termination "dhaessel won by resignation"]

1. g3 {[%clk 0:02:56]} 1... d5 {[%clk 0:02:58.3]} 2. Bg2 {[%clk 0:02:56.2]} 2...
Nf6 {[%clk 0:02:56.4]} 3. d3 {[%clk 0:02:56.7]} 3... e5 {[%clk 0:02:54.1]} 4. e4
{[%clk 0:02:55.9]} 4... dxe4 {[%clk 0:02:51.1]} 5. dxe4 {[%clk 0:02:55.7]} 5...
Qxd1+ {[%clk 0:02:50.4]} 6. Kxd1 {[%clk 0:02:56.6]} 6... Ng4 {[%clk 0:02:41.9]}
7. Nh3 {[%clk 0:02:56.2]} 7... Bc5 {[%clk 0:02:41.8]} 8. f3 {[%clk 0:02:29.4]}
8... Ne3+ {[%clk 0:02:40.3]} 9. Bxe3 {[%clk 0:02:26.9]} 9... Bxe3 {[%clk
0:02:41.2]} 10. Nd2 {[%clk 0:02:15.5]} 10... Nc6 {[%clk 0:02:30.3]} 11. Nc4
{[%clk 0:02:15]} 11... Bh6 {[%clk 0:02:20.8]} 12. c3 {[%clk 0:02:08.2]} 12...
Be6 {[%clk 0:02:13.5]} 13. Bf1 {[%clk 0:01:58.3]} 13... O-O-O+ {[%clk 0:02:09]}
14. Kc2 {[%clk 0:01:53.7]} 14... f5 {[%clk 0:02:02.6]} 15. f4 {[%clk 0:01:09.5]}
15... fxe4 {[%clk 0:01:52.6]} 16. Re1 {[%clk 0:00:59.8]} 16... Kb8 {[%clk
0:01:48.1]} 17. Ne3 {[%clk 0:00:46.9]} 17... Bxh3 {[%clk 0:01:43.7]} 18. Bxh3
{[%clk 0:00:45.5]} 18... exf4 {[%clk 0:01:44.6]} 19. gxf4 {[%clk 0:00:44.8]}
19... Bxf4 {[%clk 0:01:44]} 20. Nf5 {[%clk 0:00:37.9]} 20... Rd2+ {[%clk
0:01:40.3]} 21. Kb3 {[%clk 0:00:36.9]} 21... g6 {[%clk 0:01:30.4]} 22. Rxe4
{[%clk 0:00:35.8]} 22... Bg5 {[%clk 0:01:18.3]} 23. Ng3 {[%clk 0:00:30.6]} 23...
Na5+ {[%clk 0:01:09.2]} 24. Ka4 {[%clk 0:00:27.8]} 24... b6 {[%clk 0:01:04.3]}
25. Rhe1 {[%clk 0:00:25.8]} 25... Rxb2 {[%clk 0:00:57.7]} 26. Re8+ {[%clk
0:00:25.8]} 26... Rxe8 {[%clk 0:00:57.1]} 27. Rxe8+ {[%clk 0:00:26.7]} 27... Kb7
{[%clk 0:00:47.2]} 28. Ne4 {[%clk 0:00:23.6]} 28... Rxa2+ {[%clk 0:00:45.2]} 29.
Kb4 {[%clk 0:00:23.5]} 29... Rb2+ {[%clk 0:00:43.4]} 30. Ka3 {[%clk 0:00:23.1]}
30... Bc1 {[%clk 0:00:40.8]} 31. Ka4 {[%clk 0:00:15.1]} 31... Ra2+ {[%clk
0:00:25.9]} 32. Kb4 {[%clk 0:00:15]} 32... c5+ {[%clk 0:00:25.1]} 33. Nxc5+
{[%clk 0:00:15.1]} 33... bxc5+ {[%clk 0:00:24.3]} 34. Kxc5 {[%clk 0:00:16]}
34... Ba3+ {[%clk 0:00:22.8]} 35. Kd5 {[%clk 0:00:14.3]} 35... Rd2+ {[%clk
0:00:22.1]} 36. Ke6 {[%clk 0:00:10.4]} 36... Re2+ {[%clk 0:00:21.9]} 37. Kf7
{[%clk 0:00:11.3]} 37... Rxe8 {[%clk 0:00:22.2]} 38. Kxe8 {[%clk 0:00:12.2]}
38... Nc6 {[%clk 0:00:20.5]} 39. Kf7 {[%clk 0:00:12.4]} 39... Bb2 {[%clk
0:00:20.1]} 40. c4 {[%clk 0:00:12.1]} 40... a5 {[%clk 0:00:19.2]} 41. Bg2 {[%clk
0:00:11.8]} 41... a4 {[%clk 0:00:19.2]} 42. c5 {[%clk 0:00:09.3]} 42... a3
{[%clk 0:00:19]} 43. Bd5 {[%clk 0:00:09.6]} 43... Bd4 {[%clk 0:00:18]} 44. Ke6
{[%clk 0:00:08.9]} 44... Bxc5 {[%clk 0:00:17.9]} 45. Kd7 {[%clk 0:00:09.3]}
45... Kb6 {[%clk 0:00:16.6]} 46. Ke6 {[%clk 0:00:08]} 46... Nb4 {[%clk
0:00:14.9]} 47. Bc4 {[%clk 0:00:07.7]} 47... a2 {[%clk 0:00:14.4]} 48. Bxa2
{[%clk 0:00:08.1]} 48... Nxa2 {[%clk 0:00:15.1]} 49. Kf7 {[%clk 0:00:09]} 49...
h5 {[%clk 0:00:14.2]} 50. Kxg6 {[%clk 0:00:08.9]} 50... h4 {[%clk 0:00:14.4]}
51. Kg5 {[%clk 0:00:08.5]} 51... Bf2 {[%clk 0:00:14.5]} 52. Kf4 {[%clk 0:00:08]}
52... Be1 {[%clk 0:00:15]} 53. Kf3 {[%clk 0:00:08.5]} 53... Kc5 {[%clk
0:00:15.3]} 54. Ke2 {[%clk 0:00:09]} 54... Bc3 {[%clk 0:00:15.2]} 55. Kf3 {[%clk
0:00:09.6]} 55... Bf6 {[%clk 0:00:15.3]} 56. h3 {[%clk 0:00:10.4]} 56... Bd8
{[%clk 0:00:15.5]} 57. Kf4 {[%clk 0:00:11.3]} 57... Kd4 {[%clk 0:00:15.7]} 58.
Kg4 {[%clk 0:00:12.2]} 58... Nc3 {[%clk 0:00:15.9]} 59. Kf3 {[%clk 0:00:13.1]}
59... Nd5 {[%clk 0:00:15.6]} 60. Kg4 {[%clk 0:00:14]} 60... Ne3+ {[%clk
0:00:15.5]} 61. Kf3 {[%clk 0:00:14.9]} 61... Nd5 {[%clk 0:00:14.3]} 62. Kg4
{[%clk 0:00:15.8]} 62... Nc7 {[%clk 0:00:14.1]} 63. Kf4 {[%clk 0:00:14.9]} 63...
Nd5+ {[%clk 0:00:13.8]} 64. Kf5 {[%clk 0:00:15.8]} 64... Ke3 {[%clk 0:00:13.8]}
65. Kg4 {[%clk 0:00:16]} 65... Nc3 {[%clk 0:00:13.9]} 66. Kf5 {[%clk 0:00:15.8]}
66... Ne4 {[%clk 0:00:14.1]} 67. Kg4 {[%clk 0:00:16.2]} 67... Nf2+ {[%clk
0:00:14.3]} 68. Kf5 {[%clk 0:00:17.1]} 68... Nxh3 {[%clk 0:00:14.5]} 69. Kg4
{[%clk 0:00:18]} 69... Nf4 {[%clk 0:00:14.7]} 70. Kf5 {[%clk 0:00:17.5]} 70...
h3 {[%clk 0:00:14.9]} 71. Ke5 {[%clk 0:00:17.7]} 71... h2 {[%clk 0:00:15]} 72.
Kd6 {[%clk 0:00:18.6]} 72... h1=Q {[%clk 0:00:14.1]} 73. Kd7 {[%clk 0:00:19.5]}
0-1

[Event "*** Titled Tuesday Blitz"]
[Site "Chess.com"]
[Date "2021.03.30"]
[Round "11"]
[White "Das_Virus_2020"]
[Black "CzechmVIII"]
[Result "1/2-1/2"]
[WhiteElo "2423"]
[BlackElo "2221"]
[TimeControl "180+1"]
[EndTime "12:09:31 PDT"]
[Termination "Game drawn by repetition"]

1. e4 {[%clk 0:03:00.9]} 1... c5 {[%clk 0:03:00]} 2. c3 {[%clk 0:03:00.7]} 2...
d5 {[%clk 0:02:59.8]} 3. exd5 {[%clk 0:03:01.6]} 3... Nf6 {[%clk 0:02:59.9]} 4.
d4 {[%clk 0:03:01.5]} 4... Nxd5 {[%clk 0:02:59.1]} 5. Nf3 {[%clk 0:02:58.5]}
5... cxd4 {[%clk 0:02:59.3]} 6. Nxd4 {[%clk 0:02:57]} 6... e6 {[%clk 0:02:59.1]}
7. Be2 {[%clk 0:02:56.8]} 7... Be7 {[%clk 0:02:54.2]} 8. O-O {[%clk 0:02:56.6]}
8... O-O {[%clk 0:02:54.4]} 9. c4 {[%clk 0:02:53.9]} 9... Nf6 {[%clk 0:02:53.5]}
10. Nc3 {[%clk 0:02:52.8]} 10... Nc6 {[%clk 0:02:50]} 11. Nxc6 {[%clk
0:02:51.1]} 11... bxc6 {[%clk 0:02:50.7]} 12. Qxd8 {[%clk 0:02:45.1]} 12... Rxd8
{[%clk 0:02:50.1]} 13. Bf3 {[%clk 0:02:45.3]} 13... Bb7 {[%clk 0:02:42.3]} 14.
Be3 {[%clk 0:02:40.5]} 14... Nd7 {[%clk 0:02:17.9]} 15. Rfd1 {[%clk 0:02:24.8]}
15... Ne5 {[%clk 0:02:17.6]} 16. Be2 {[%clk 0:02:24.8]} 16... c5 {[%clk
0:02:06.2]} 17. Na4 {[%clk 0:02:13.6]} 17... Nd7 {[%clk 0:01:21.8]} 18. f3
{[%clk 0:01:26.4]} 18... Bc6 {[%clk 0:01:21.8]} 19. Nc3 {[%clk 0:01:25.2]} 19...
f5 {[%clk 0:01:10.1]} 20. Rd2 {[%clk 0:01:18.5]} 20... Nb6 {[%clk 0:00:49.7]}
21. Rad1 {[%clk 0:01:13.3]} 21... Rxd2 {[%clk 0:00:46.1]} 22. Rxd2 {[%clk
0:01:14.2]} 22... Kf7 {[%clk 0:00:37.9]} 23. b3 {[%clk 0:01:05.1]} 23... Nd7
{[%clk 0:00:34.2]} 24. Nb5 {[%clk 0:00:58.3]} 24... a6 {[%clk 0:00:27.4]} 25.
Nd6+ {[%clk 0:00:47.5]} 25... Kg6 {[%clk 0:00:26.8]} 26. Nb7 {[%clk 0:00:30.1]}
26... Rc8 {[%clk 0:00:18.1]} 27. Na5 {[%clk 0:00:29.2]} 27... Ba8 {[%clk
0:00:16.1]} 28. Rxd7 {[%clk 0:00:28.4]} 28... Bf6 {[%clk 0:00:15.3]} 29. Kf2
{[%clk 0:00:27.4]} 29... Kh5 {[%clk 0:00:14.7]} 30. g3 {[%clk 0:00:26.6]} 30...
g5 {[%clk 0:00:14.7]} 31. h3 {[%clk 0:00:26.3]} 31... Kg6 {[%clk 0:00:15.2]} 32.
Rd6 {[%clk 0:00:24.2]} 32... Kf7 {[%clk 0:00:14.5]} 33. Rxa6 {[%clk 0:00:23.2]}
33... e5 {[%clk 0:00:12.9]} 34. Ra7+ {[%clk 0:00:21.5]} 34... Kg6 {[%clk
0:00:12.8]} 35. Rd7 {[%clk 0:00:19.9]} 35... f4 {[%clk 0:00:13.7]} 36. gxf4
{[%clk 0:00:19.5]} 36... gxf4 {[%clk 0:00:14.6]} 37. Bd2 {[%clk 0:00:19.2]}
37... Rg8 {[%clk 0:00:14.3]} 38. Bc3 {[%clk 0:00:18.7]} 38... Kf5 {[%clk
0:00:14.5]} 39. Rd6 {[%clk 0:00:18.7]} 39... Rg3 {[%clk 0:00:14.2]} 40. Nc6
{[%clk 0:00:18.4]} 40... Rxh3 {[%clk 0:00:14.5]} 41. Nxe5 {[%clk 0:00:18.2]}
41... Rh2+ {[%clk 0:00:13.1]} 42. Ke1 {[%clk 0:00:17.6]} 42... Bxe5 {[%clk
0:00:13.3]} 43. Bxe5 {[%clk 0:00:17.6]} 43... Kxe5 {[%clk 0:00:13.6]} 44. Rd7
{[%clk 0:00:17.4]} 44... Rh1+ {[%clk 0:00:12.7]} 45. Kd2 {[%clk 0:00:17]} 45...
Rh2 {[%clk 0:00:13.1]} 46. Kd3 {[%clk 0:00:15.9]} 46... Rh3 {[%clk 0:00:12.2]}
47. Re7+ {[%clk 0:00:15.2]} 47... Kf5 {[%clk 0:00:12]} 48. Rc7 {[%clk
0:00:14.7]} 48... Bxf3 {[%clk 0:00:11.1]} 49. Bxf3 {[%clk 0:00:14.5]} 49...
Rxf3+ {[%clk 0:00:12]} 50. Ke2 {[%clk 0:00:15]} 50... Rh3 {[%clk 0:00:12.2]} 51.
Rxc5+ {[%clk 0:00:13.8]} 51... Kg4 {[%clk 0:00:13.1]} 52. Rc8 {[%clk 0:00:13.4]}
52... Rh2+ {[%clk 0:00:13.4]} 53. Kd3 {[%clk 0:00:13.1]} 53... Rxa2 {[%clk
0:00:14.3]} 54. b4 {[%clk 0:00:12.9]} 54... f3 {[%clk 0:00:14.2]} 55. b5 {[%clk
0:00:12.8]} 55... f2 {[%clk 0:00:13.9]} 56. Rf8 {[%clk 0:00:11.3]} 56... Kg3
{[%clk 0:00:13.9]} 57. b6 {[%clk 0:00:11]} 57... Rb2 {[%clk 0:00:14.3]} 58. c5
{[%clk 0:00:11]} 58... Kg2 {[%clk 0:00:14.7]} 59. Rxf2+ {[%clk 0:00:09.6]} 59...
Kxf2 {[%clk 0:00:14]} 60. Kd4 {[%clk 0:00:09.9]} 60... h5 {[%clk 0:00:13.6]} 61.
Kd5 {[%clk 0:00:08.9]} 61... h4 {[%clk 0:00:13.9]} 62. c6 {[%clk 0:00:09.1]}
62... Rxb6 {[%clk 0:00:12.7]} 63. c7 {[%clk 0:00:09.5]} 63... Rb5+ {[%clk
0:00:13]} 64. Kd4 {[%clk 0:00:08.5]} 64... Rb4+ {[%clk 0:00:12.7]} 65. Kd5
{[%clk 0:00:08.8]} 65... Rb5+ {[%clk 0:00:11.5]} 66. Kd6 {[%clk 0:00:08.9]}
66... Rb6+ {[%clk 0:00:11.6]} 67. Kd5 {[%clk 0:00:09.1]} 67... Rb5+ {[%clk
0:00:11.9]} 1/2-1/2

[Event "*** Titled Tuesday Blitz"]
[Site "Chess.com"]
[Date "2021.03.30"]
[Round "11"]
[White "Terao90"]
[Black "MarcoRiehle"]
[Result "1-0"]
[WhiteElo "2565"]
[BlackElo "2686"]
[TimeControl "180+1"]
[EndTime "12:09:33 PDT"]
[Termination "Terao90 won by checkmate"]

1. e4 {[%clk 0:02:56.6]} 1... e5 {[%clk 0:02:59.6]} 2. Nf3 {[%clk 0:02:56.5]}
2... Nf6 {[%clk 0:02:59.2]} 3. Nc3 {[%clk 0:02:56.9]} 3... Nc6 {[%clk
0:02:58.6]} 4. d4 {[%clk 0:02:53.7]} 4... exd4 {[%clk 0:02:59.5]} 5. Nxd4 {[%clk
0:02:54.5]} 5... Bb4 {[%clk 0:02:59.9]} 6. Nxc6 {[%clk 0:02:54.9]} 6... bxc6
{[%clk 0:03:00.8]} 7. Bd3 {[%clk 0:02:55.4]} 7... d5 {[%clk 0:03:00.1]} 8. exd5
{[%clk 0:02:55.5]} 8... O-O {[%clk 0:02:59.8]} 9. O-O {[%clk 0:02:55.9]} 9...
cxd5 {[%clk 0:02:59.8]} 10. Bg5 {[%clk 0:02:52.9]} 10... c6 {[%clk 0:02:59.5]}
11. Qf3 {[%clk 0:02:52.5]} 11... Re8 {[%clk 0:02:59]} 12. h3 {[%clk 0:02:49.6]}
12... h6 {[%clk 0:02:58.5]} 13. Bh4 {[%clk 0:02:43]} 13... Rb8 {[%clk
0:02:56.1]} 14. Na4 {[%clk 0:02:39.9]} 14... Bd6 {[%clk 0:02:54.2]} 15. b3
{[%clk 0:02:31.8]} 15... c5 {[%clk 0:02:53.1]} 16. Bxf6 {[%clk 0:02:28.9]} 16...
Qxf6 {[%clk 0:02:48.3]} 17. Qxf6 {[%clk 0:02:26.6]} 17... gxf6 {[%clk
0:02:47.6]} 18. c4 {[%clk 0:02:26.3]} 18... d4 {[%clk 0:02:47.1]} 19. Rfe1
{[%clk 0:02:23.6]} 19... Re6 {[%clk 0:02:45]} 20. Nb2 {[%clk 0:02:14.6]} 20...
Bd7 {[%clk 0:02:43.6]} 21. Kf1 {[%clk 0:02:09.4]} 21... a5 {[%clk 0:02:39.4]}
22. Rab1 {[%clk 0:02:05.3]} 22... Kg7 {[%clk 0:02:37.9]} 23. g4 {[%clk
0:02:01.5]} 23... Re5 {[%clk 0:02:28.3]} 24. Be4 {[%clk 0:01:50.9]} 24... Rbe8
{[%clk 0:02:23.2]} 25. Bd5 {[%clk 0:01:44.8]} 25... h5 {[%clk 0:02:23.1]} 26. f3
{[%clk 0:01:43.8]} 26... f5 {[%clk 0:02:11.4]} 27. gxh5 {[%clk 0:01:40.4]} 27...
f4 {[%clk 0:02:09.1]} 28. Rxe5 {[%clk 0:01:38.6]} 28... Rxe5 {[%clk 0:02:10]}
29. Nd3 {[%clk 0:01:28.1]} 29... Re3 {[%clk 0:02:04]} 30. Nf2 {[%clk 0:01:26.7]}
30... d3 {[%clk 0:02:00.9]} 31. Rd1 {[%clk 0:01:24.3]} 31... Bf5 {[%clk
0:02:00.7]} 32. Be4 {[%clk 0:01:20.1]} 32... Bxe4 {[%clk 0:02:00]} 33. fxe4
{[%clk 0:01:20.4]} 33... Be5 {[%clk 0:01:45]} 34. Rxd3 {[%clk 0:01:20.2]} 34...
Bd4 {[%clk 0:01:45.5]} 35. Rxe3 {[%clk 0:01:18.4]} 35... Bxe3 {[%clk 0:01:45.3]}
36. Ng4 {[%clk 0:01:16.6]} 36... Bd4 {[%clk 0:01:44.8]} 37. Ke2 {[%clk
0:01:15.5]} 37... Bb2 {[%clk 0:01:44]} 38. Kf3 {[%clk 0:01:12.9]} 38... Bc1
{[%clk 0:01:44.2]} 39. e5 {[%clk 0:01:13.2]} 39... Bd2 {[%clk 0:01:43.5]} 40.
Ke4 {[%clk 0:01:12.8]} 40... Bc1 {[%clk 0:01:41.6]} 41. Kf5 {[%clk 0:01:10.8]}
41... Bd2 {[%clk 0:01:38.6]} 42. Ke4 {[%clk 0:00:35.4]} 42... Bc1 {[%clk
0:01:38.1]} 43. Nf2 {[%clk 0:00:31.8]} 43... Bd2 {[%clk 0:01:19.3]} 44. Nd3
{[%clk 0:00:30.3]} 44... Kh6 {[%clk 0:01:19.8]} 45. Nxf4 {[%clk 0:00:24.7]}
45... Kg5 {[%clk 0:01:19.3]} 46. h6 {[%clk 0:00:21.5]} 46... Kxh6 {[%clk
0:01:17.6]} 47. e6 {[%clk 0:00:17.9]} 47... fxe6 {[%clk 0:01:11.9]} 48. Nxe6
{[%clk 0:00:18.8]} 48... Bb4 {[%clk 0:01:12.2]} 49. Kd5 {[%clk 0:00:17.5]} 49...
Kg6 {[%clk 0:01:12.4]} 50. Nxc5 {[%clk 0:00:17.7]} 50... Kf7 {[%clk 0:01:12.9]}
51. Nd3 {[%clk 0:00:15.6]} 51... Bd2 {[%clk 0:01:12.2]} 52. a3 {[%clk
0:00:15.7]} 52... Ke7 {[%clk 0:01:12.4]} 53. b4 {[%clk 0:00:16.3]} 53... a4
{[%clk 0:01:12.8]} 54. c5 {[%clk 0:00:15.2]} 54... Kd7 {[%clk 0:01:13]} 55. b5
{[%clk 0:00:15.8]} 55... Kc7 {[%clk 0:01:09.8]} 56. h4 {[%clk 0:00:16.4]} 56...
Bh6 {[%clk 0:01:09.1]} 57. h5 {[%clk 0:00:16.8]} 57... Bf8 {[%clk 0:01:09.7]}
58. Kc4 {[%clk 0:00:16.7]} 58... Bh6 {[%clk 0:01:06.5]} 59. Kb4 {[%clk
0:00:16.9]} 59... Kd7 {[%clk 0:01:05.9]} 60. Kxa4 {[%clk 0:00:17.4]} 60... Ke6
{[%clk 0:01:06.5]} 61. Kb4 {[%clk 0:00:17.9]} 61... Kd5 {[%clk 0:01:06.9]} 62.
a4 {[%clk 0:00:18.1]} 62... Bd2+ {[%clk 0:01:04.1]} 63. Kb3 {[%clk 0:00:17.7]}
63... Kd4 {[%clk 0:01:04.4]} 64. c6 {[%clk 0:00:17.6]} 64... Ba5 {[%clk
0:01:04.4]} 65. h6 {[%clk 0:00:14.5]} 65... Kxd3 {[%clk 0:01:02.2]} 66. h7
{[%clk 0:00:15.1]} 66... Kd4 {[%clk 0:01:02.2]} 67. h8=Q+ {[%clk 0:00:15.1]}
67... Kc5 {[%clk 0:01:02.8]} 68. Qe5+ {[%clk 0:00:14.9]} 68... Kb6 {[%clk
0:01:02.7]} 69. c7 {[%clk 0:00:15]} 69... Kb7 {[%clk 0:01:02.3]} 70. c8=Q+
{[%clk 0:00:09.4]} 70... Kxc8 {[%clk 0:01:02.4]} 71. Qe6+ {[%clk 0:00:10]} 71...
Kb8 {[%clk 0:00:59.6]} 72. Qc6 {[%clk 0:00:09.2]} 72... Bc7 {[%clk 0:00:59.4]}
73. b6 {[%clk 0:00:09.1]} 73... Be5 {[%clk 0:00:57.8]} 74. a5 {[%clk 0:00:09.2]}
74... Bd6 {[%clk 0:00:53.9]} 75. a6 {[%clk 0:00:08.3]} 75... Bc7 {[%clk
0:00:52.9]} 76. a7+ {[%clk 0:00:07.9]} 76... Kc8 {[%clk 0:00:52.7]} 77. b7+
{[%clk 0:00:07.8]} 77... Kd8 {[%clk 0:00:51.1]} 78. b8=Q+ {[%clk 0:00:08.1]}
78... Ke7 {[%clk 0:00:50.9]} 79. Qbxc7+ {[%clk 0:00:08.4]} 79... Kf8 {[%clk
0:00:51.1]} 80. Qa8# {[%clk 0:00:08.7]} 1-0

[Event "*** Titled Tuesday Blitz"]
[Site "Chess.com"]
[Date "2021.03.30"]
[Round "11"]
[White "PavelChernomordik"]
[Black "Djager97"]
[Result "0-1"]
[WhiteElo "2382"]
[BlackElo "2492"]
[TimeControl "180+1"]
[EndTime "12:09:33 PDT"]
[Termination "Djager97 won on time"]

1. e4 {[%clk 0:03:00.9]} 1... e5 {[%clk 0:03:00.1]} 2. Nf3 {[%clk 0:03:00.3]}
2... Nc6 {[%clk 0:03:00.6]} 3. Bb5 {[%clk 0:02:59.7]} 3... a6 {[%clk 0:03:00.6]}
4. Ba4 {[%clk 0:02:59.3]} 4... Nf6 {[%clk 0:03:00.8]} 5. Qe2 {[%clk 0:02:59]}
5... b5 {[%clk 0:03:00]} 6. Bb3 {[%clk 0:02:58.7]} 6... Bc5 {[%clk 0:03:00.6]}
7. a4 {[%clk 0:02:58.2]} 7... Rb8 {[%clk 0:02:58.2]} 8. axb5 {[%clk 0:02:57.6]}
8... axb5 {[%clk 0:02:59.1]} 9. d3 {[%clk 0:02:52.9]} 9... d6 {[%clk 0:02:56.7]}
10. Bg5 {[%clk 0:02:51.8]} 10... h6 {[%clk 0:02:52.8]} 11. Bh4 {[%clk
0:02:51.2]} 11... Bg4 {[%clk 0:02:43.1]} 12. c3 {[%clk 0:02:49.8]} 12... g5
{[%clk 0:02:39.2]} 13. Bg3 {[%clk 0:02:49]} 13... O-O {[%clk 0:02:27.6]} 14. h3
{[%clk 0:02:46.8]} 14... Bh5 {[%clk 0:02:09.4]} 15. Nbd2 {[%clk 0:02:39.5]}
15... Kg7 {[%clk 0:02:06.1]} 16. O-O {[%clk 0:02:31.4]} 16... Bg6 {[%clk
0:01:58.2]} 17. Ra6 {[%clk 0:02:23.7]} 17... Bb6 {[%clk 0:01:56.5]} 18. Kh1
{[%clk 0:02:16]} 18... Nh5 {[%clk 0:01:56.1]} 19. Bh2 {[%clk 0:02:15.4]} 19...
Nf4 {[%clk 0:01:46.4]} 20. Bxf4 {[%clk 0:02:13]} 20... gxf4 {[%clk 0:01:47.3]}
21. Bd5 {[%clk 0:01:57.7]} 21... Ne7 {[%clk 0:01:43.5]} 22. d4 {[%clk
0:01:56.4]} 22... f6 {[%clk 0:01:23.5]} 23. Be6 {[%clk 0:01:51.6]} 23... Qe8
{[%clk 0:01:08.4]} 24. Nb3 {[%clk 0:01:45.1]} 24... Nc6 {[%clk 0:01:04.7]} 25.
Bd5 {[%clk 0:01:30.6]} 25... Kh7 {[%clk 0:01:04.5]} 26. Nh4 {[%clk 0:01:26.9]}
26... Bh5 {[%clk 0:01:04.7]} 27. Qd3 {[%clk 0:01:20.1]} 27... Ne7 {[%clk
0:01:00.8]} 28. Be6 {[%clk 0:01:16.5]} 28... Ng6 {[%clk 0:00:39.4]} 29. Bf5
{[%clk 0:01:15.1]} 29... Kg7 {[%clk 0:00:39.9]} 30. Bxg6 {[%clk 0:01:02.2]}
30... Bxg6 {[%clk 0:00:40.8]} 31. d5 {[%clk 0:00:59.5]} 31... Bh7 {[%clk
0:00:37.5]} 32. Nd2 {[%clk 0:00:53.4]} 32... Qh5 {[%clk 0:00:36.5]} 33. Ndf3
{[%clk 0:00:51.4]} 33... Kh8 {[%clk 0:00:36.2]} 34. Kh2 {[%clk 0:00:40.3]} 34...
f5 {[%clk 0:00:36.3]} 35. exf5 {[%clk 0:00:38.6]} 35... Rxf5 {[%clk 0:00:37.2]}
36. Nxf5 {[%clk 0:00:35.3]} 36... Bxf5 {[%clk 0:00:38.1]} 37. Qxb5 {[%clk
0:00:33]} 37... Rg8 {[%clk 0:00:36.6]} 38. Qe2 {[%clk 0:00:30.3]} 38... e4
{[%clk 0:00:31.2]} 39. Nd4 {[%clk 0:00:20.9]} 39... f3 {[%clk 0:00:31.5]} 40.
Nxf3 {[%clk 0:00:14.1]} 40... exf3 {[%clk 0:00:28.4]} 41. Qxf3 {[%clk
0:00:13.5]} 41... Qxf3 {[%clk 0:00:26.3]} 42. gxf3 {[%clk 0:00:13.2]} 42... Bd3
{[%clk 0:00:27.2]} 43. Rxb6 {[%clk 0:00:11.6]} 43... cxb6 {[%clk 0:00:28.1]} 44.
Re1 {[%clk 0:00:10.3]} 44... Bc4 {[%clk 0:00:26.7]} 45. Re6 {[%clk 0:00:09.2]}
45... Bxd5 {[%clk 0:00:26.5]} 46. Rxh6+ {[%clk 0:00:08.1]} 46... Kg7 {[%clk
0:00:27]} 47. Rxd6 {[%clk 0:00:07.8]} 47... Bxf3 {[%clk 0:00:27.3]} 48. Rxb6
{[%clk 0:00:07.1]} 48... Kf7 {[%clk 0:00:27.8]} 49. Rb4 {[%clk 0:00:03]} 49...
Rg2+ {[%clk 0:00:25.3]} 50. Kh1 {[%clk 0:00:02.7]} 50... Rxf2+ {[%clk
0:00:25.6]} 51. Kg1 {[%clk 0:00:02.4]} 51... Rg2+ {[%clk 0:00:26.2]} 52. Kf1
{[%clk 0:00:02.1]} 52... Ke6 {[%clk 0:00:19.4]} 53. Rf4 {[%clk 0:00:01.3]} 53...
Bc6 {[%clk 0:00:18]} 54. Rf2 {[%clk 0:00:01]} 54... Rg3 {[%clk 0:00:17.1]} 55.
Ke2 {[%clk 0:00:01.2]} 55... Rxh3 {[%clk 0:00:17.2]} 56. Kd2 {[%clk 0:00:01.3]}
56... Kd5 {[%clk 0:00:17.4]} 0-1

[Event "*** Titled Tuesday Blitz"]
[Site "Chess.com"]
[Date "2021.03.30"]
[Round "11"]
[White "Duhless"]
[Black "Eltaj_Safarli"]
[Result "0-1"]
[WhiteElo "3032"]
[BlackElo "2903"]
[TimeControl "180+1"]
[EndTime "12:09:35 PDT"]
[Termination "Eltaj_Safarli won on time"]

1. e4 {[%clk 0:02:55]} 1... e5 {[%clk 0:02:59.4]} 2. Nf3 {[%clk 0:02:55.4]} 2...
Nc6 {[%clk 0:02:59.5]} 3. Bc4 {[%clk 0:02:54.8]} 3... Bc5 {[%clk 0:02:59]} 4. c3
{[%clk 0:02:54.4]} 4... Nf6 {[%clk 0:02:58.8]} 5. d3 {[%clk 0:02:55.3]} 5... O-O
{[%clk 0:02:57.6]} 6. h3 {[%clk 0:02:55.1]} 6... d5 {[%clk 0:02:55.6]} 7. exd5
{[%clk 0:02:54.1]} 7... Nxd5 {[%clk 0:02:56.5]} 8. O-O {[%clk 0:02:54.6]} 8...
Bf5 {[%clk 0:02:53]} 9. Re1 {[%clk 0:02:52.7]} 9... Nb6 {[%clk 0:02:51.3]} 10.
Bb5 {[%clk 0:02:51.4]} 10... Bd6 {[%clk 0:02:42.4]} 11. Nbd2 {[%clk 0:02:43.9]}
11... Re8 {[%clk 0:02:35.8]} 12. Ne4 {[%clk 0:02:43]} 12... a6 {[%clk
0:02:28.5]} 13. Bxc6 {[%clk 0:02:37.3]} 13... bxc6 {[%clk 0:02:29.4]} 14. c4
{[%clk 0:02:28.5]} 14... Nd7 {[%clk 0:02:26.4]} 15. b3 {[%clk 0:02:20.2]} 15...
Bxe4 {[%clk 0:02:21.6]} 16. dxe4 {[%clk 0:02:19]} 16... Bc5 {[%clk 0:02:17.8]}
17. Be3 {[%clk 0:02:17.8]} 17... Qe7 {[%clk 0:02:15]} 18. Qc2 {[%clk 0:02:15]}
18... a5 {[%clk 0:02:14.9]} 19. Rad1 {[%clk 0:02:07.4]} 19... Bxe3 {[%clk
0:02:09.7]} 20. Rxe3 {[%clk 0:02:06.8]} 20... Nc5 {[%clk 0:02:10.5]} 21. Ree1
{[%clk 0:01:59.8]} 21... Rad8 {[%clk 0:02:08.9]} 22. Qc3 {[%clk 0:01:58.3]}
22... Ra8 {[%clk 0:02:01.5]} 23. g3 {[%clk 0:01:55.7]} 23... f6 {[%clk 0:01:59]}
24. Nh4 {[%clk 0:01:47]} 24... g6 {[%clk 0:01:59]} 25. Nf3 {[%clk 0:01:42.6]}
25... Ne6 {[%clk 0:01:58.8]} 26. Kg2 {[%clk 0:01:41.9]} 26... c5 {[%clk
0:01:58.7]} 27. h4 {[%clk 0:01:36.2]} 27... Nd4 {[%clk 0:01:52.5]} 28. h5 {[%clk
0:01:34.9]} 28... Qe6 {[%clk 0:01:40.9]} 29. Rh1 {[%clk 0:01:25.9]} 29... Rad8
{[%clk 0:01:39.3]} 30. Qe3 {[%clk 0:01:23.8]} 30... g5 {[%clk 0:01:35.2]} 31.
Qc3 {[%clk 0:01:06.5]} 31... Ra8 {[%clk 0:01:27.4]} 32. h6 {[%clk 0:00:55.9]}
32... Red8 {[%clk 0:01:16.5]} 33. Qe3 {[%clk 0:00:53.2]} 33... Qe7 {[%clk
0:01:11.8]} 34. Nh2 {[%clk 0:00:47.9]} 34... a4 {[%clk 0:01:07]} 35. Ng4 {[%clk
0:00:46.2]} 35... Rdb8 {[%clk 0:01:01.3]} 36. Rd3 {[%clk 0:00:41.8]} 36... axb3
{[%clk 0:00:55]} 37. axb3 {[%clk 0:00:41.2]} 37... Ra3 {[%clk 0:00:55.6]} 38.
Rhd1 {[%clk 0:00:37.4]} 38... Rbxb3 {[%clk 0:00:50.3]} 39. Rxb3 {[%clk
0:00:35.9]} 39... Rxb3 {[%clk 0:00:51.2]} 40. Rd3 {[%clk 0:00:32.2]} 40... Rb4
{[%clk 0:00:45.5]} 41. Ra3 {[%clk 0:00:30.7]} 41... Rb8 {[%clk 0:00:42.8]} 42.
Ra6 {[%clk 0:00:26.1]} 42... c6 {[%clk 0:00:42.6]} 43. Qa3 {[%clk 0:00:25.7]}
43... Kf7 {[%clk 0:00:27.7]} 44. Ra7 {[%clk 0:00:23.8]} 44... Rb7 {[%clk
0:00:28.2]} 45. Ra8 {[%clk 0:00:20.8]} 45... Qe6 {[%clk 0:00:26.7]} 46. Qxc5
{[%clk 0:00:12.1]} 46... Qxg4 {[%clk 0:00:14.5]} 47. Qf8+ {[%clk 0:00:11.9]}
47... Kg6 {[%clk 0:00:15]} 48. Qg8+ {[%clk 0:00:09.1]} 48... Kxh6 {[%clk
0:00:14.5]} 49. Qf8+ {[%clk 0:00:09.2]} 49... Kg6 {[%clk 0:00:14.6]} 50. Qe8+
{[%clk 0:00:05.5]} 50... Rf7 {[%clk 0:00:12.8]} 51. Ra7 {[%clk 0:00:04.2]} 51...
Qxe4+ {[%clk 0:00:12.2]} 52. Kg1 {[%clk 0:00:01.4]} 52... Nf3+ {[%clk
0:00:08.6]} 53. Kf1 {[%clk 0:00:01.8]} 53... Nd2+ {[%clk 0:00:05.2]} 54. Kg1
{[%clk 0:00:01.6]} 54... Qe1+ {[%clk 0:00:06.1]} 0-1